Cogmind - Beta 12 @@@ ROGUE MODE // 2023.06.03 @ 19:39:18 Player: Mr Goldstein Result: Destroyed by S-27 Virus with Autogun Performance ------------- Evolutions (4) 2000 Regions Visited (15) 3000 Robots Destroyed (52) 260 Value Destroyed (1229) 1229 Prototype IDs (14) 280 Alien Tech Used (0) 0 Bonus (979) 979 TOTAL SCORE: 7748 Bonus ------- High Alert Combat Kills 50 Follower Combat Kills 722 Met Data Miner 300 Friendly Fire -93 Cogmind --------- Core Integrity 0/850 Matter 290/300 Energy 80/100 System Corruption 0% Temperature Cool (0) Movement Core (50) Location -6/Cetus Parts ------- > --- POWER (2) -------- (None) > --- PROPULSION (5) --- (None) > --- UTILITY (6) ------ Advanced Targeting Computer Launcher Guidance Computer Launcher Guidance Computer Launcher Guidance Computer > --- WEAPON (2) ------- Mini Grenade Launcher > --- INVENTORY (5) ---- Molecular Deconstructor Peak State ------------ > --- POWER ------------ (None) > --- PROPULSION ------- VTOL Module Nuclear Pulse Thruster > --- UTILITY ---------- Advanced Targeting Computer Advanced Targeting Computer Launcher Guidance Computer Launcher Guidance Computer Improved Light Armor Plating Hacking Suite > --- WEAPON ----------- Molecular Deconstructor > --- INVENTORY -------- Light Nuclear Core Launcher Guidance Computer Mini Grenade Launcher Missile Launcher [Rating: 46] Favorites ----------- Power Light Nuclear Core Engine Light Ion Engine Power Core Light Nuclear Core Propulsion Flight Unit Treads Improved Treads Leg Makeshift Leg Flight Unit Flight Unit Utility Launcher Guidance Computer Storage Small Storage Unit Processor Launcher Guidance Computer Hackware Hacking Suite Protection Core Shielding Weapon Spear Launcher Mini Grenade Launcher Special Weapon Molecular Deconstructor Slashing Weapon Phasing Sabre Piercing Weapon Spear Build | -11 -10 -10 -9 -9 -9 -8 -8 -7 -7 -7 -7 -6 -6 -6 -6 ------- Run | Jun Mat Min Mat Min Exi Min Mat Fac Low Low Dat Pro Fac Ext Cet Slots Evolved 8 | . . . 2 . . . 2 2 . . . . 2 . . Power 1 | . . . . . . . . . . . . . 1 . . Propulsion 3 | . . . . . . . 2 1 . . . . . . . Utility 4 | . . . 2 . . . . 1 . . . . 1 . . Weapon . | . . . . . . . . . . . . . . . . Parts Attached 75 | . . 3 1 10 1 1 5 7 1 11 . 4 11 17 3 Power 3 | . . 1 . . . . 1 1 . . . . . . . Engine 2 | . . 1 . . . . 1 . . . . . . . . Core 1 | . . . . . . . . 1 . . . . . . . Reactor . | . . . . . . . . . . . . . . . . Propulsion 27 | . . 2 . 4 1 . 2 2 1 6 . 1 3 5 . Treads 5 | . . . . . . . . . . . . . . 5 . Leg 3 | . . . . . . . . . . 3 . . . . . Wheel . | . . . . . . . . . . . . . . . . Hover . | . . . . . . . . . . . . . . . . Flight 19 | . . 2 . 4 1 . 2 2 1 3 . 1 3 . . Utility 12 | . . . . 1 . 1 1 2 . 1 . . 3 3 . Device . | . . . . . . . . . . . . . . . . Storage 1 | . . . . . . . . 1 . . . . . . . Processor 7 | . . . . 1 . . 1 1 . 1 . . 2 1 . Hackware 1 | . . . . . . . . . . . . . 1 . . Protection 3 | . . . . . . 1 . . . . . . . 2 . Artifact . | . . . . . . . . . . . . . . . . Weapon 33 | . . . 1 5 . . 1 2 . 4 . 3 5 9 3 Energy Gun . | . . . . . . . . . . . . . . . . Energy Cannon . | . . . . . . . . . . . . . . . . Ballistic Gun . | . . . . . . . . . . . . . . . . Ballistic Cannon . | . . . . . . . . . . . . . . . . Launcher 19 | . . . 1 5 . . 1 1 . 3 . 2 2 2 2 Special Weapon 4 | . . . . . . . . . . . . . 1 2 1 Impact Weapon . | . . . . . . . . . . . . . . . . Slashing Weapon 4 | . . . . . . . . . . . . . . 4 . Piercing Weapon 6 | . . . . . . . . 1 . 1 . 1 2 1 . Special Melee Weapon . | . . . . . . . . . . . . . . . . Unidentified Prototypes 1 | . . . . . . . . . . . . . 1 . . Parts Lost 33 | . . . 2 4 . . . 1 1 8 . 1 4 11 1 Power 1 | . . . 1 . . . . . . . . . . . . Propulsion 23 | . . . 1 3 . . . 1 1 7 . . 3 7 . Utility 5 | . . . . . . . . . . 1 . . 1 3 . Weapon 4 | . . . . 1 . . . . . . . 1 . 1 1 Highest Loss Streak 8 | . . . 2 3 . . . 1 1 3 . 1 3 8 1 To Critical Strikes 1 | . . . 1 . . . . . . . . . . . . Average Slot Usage (%) 47 | . . 22 26 22 33 42 55 79 92 61 38 43 45 55 29 Treads 2 | . . . . . . . . . . . . . . 9 . Flight 12 | . . 16 18 15 20 22 25 35 38 13 7 9 8 4 . Storage 2 | . . . . . . . . 5 7 7 7 7 1 . . Processor 18 | . . . . 2 11 11 18 16 23 23 23 23 24 26 26 Hackware 1 | . . . . . . . . . . . . . 3 5 . Protection 3 | . . . . . . 9 9 7 7 6 . . . 3 . Launcher 1 | . . . 1 3 1 . 1 1 . 1 . 2 . . 1 Piercing Weapon 1 | . . . . . . . . 3 7 2 . . 5 . . Naked Turns 106 | . 49 21 . 36 . . . . . . . . . . . Heaviest Build 13 | . . 3 6 3 1 1 4 13 13 13 5 7 11 9 6 Greatest Support 92 | 3 3 8 8 8 8 8 16 20 20 40 8 12 14 92 3 Greatest Overweight (x) 2 | . . . . . . . . . . 2 . . 2 2 1 Average Overweight (x) . | . . . . . . . . . . . . . . . . Largest Inventory Capacity 8 | 5 5 5 5 5 5 5 5 8 8 8 8 8 8 5 5 Average Capacity 5 | 5 5 5 5 5 5 5 5 7 8 8 8 8 5 5 5 Most Carried 6 | . 1 1 3 5 5 5 5 6 6 6 6 6 6 5 4 Average Carried 4 | . . 1 1 4 4 5 4 5 5 5 6 4 5 4 2 Final Capacity 8 | 5 5 5 5 5 5 5 5 8 8 8 8 8 5 5 5 Final Carried 6 | . 1 1 3 5 5 5 5 6 5 5 6 6 5 4 2 Class Distribution -------------------- 71% | Mutant 15% | Commander-Mutant 11% | Scavenger-Sprinter Dominant Class ---------------- Mutant | -10/Materials Mutant | -10/Mines Mutant | -9/Materials Mutant | -9/Mines Mutant | -9/Exiles Mutant | -8/Mines Mutant | -8/Materials Scavenger-Sprinter | -7/Factory Scavenger-Sprinter | -7/Lower Caves Mutant | -7/Lower Caves Mutant | -7/Data Miner Mutant | -6/Proximity Caves Mutant | -6/Factory Commander-Mutant | -6/Extension Commander-Mutant | -6/Cetus Resources | -11 -10 -10 -9 -9 -9 -8 -8 -7 -7 -7 -7 -6 -6 -6 -6 ----------- Run | Jun Mat Min Mat Min Exi Min Mat Fac Low Low Dat Pro Fac Ext Cet Matter Collected 1360 | 199 . 1 3 294 . 20 72 98 10 83 . 53 26 473 28 Remotely . | . . . . . . . . . . . . . . . . Salvage Created 897 | . . 17 26 92 . . 22 62 46 193 . 89 85 265 . Parts 76 | . . 3 5 12 . . 8 10 3 13 . 3 5 14 . Haulers Intercepted . | . . . . . . . . . . . . . . . . Recyclers Shooed 3 | . . . . . . . . . . . . . . 3 . Parts Field Recycled . | . . . . . . . . . . . . . . . . Retrieved Matter . | . . . . . . . . . . . . . . . . Parts Self-Destructed 6 | . . . . . . . . . . 4 . 2 . . . Prevented . | . . . . . . . . . . . . . . . . Kills | -11 -10 -10 -9 -9 -9 -8 -8 -7 -7 -7 -7 -6 -6 -6 -6 ------- Run | Jun Mat Min Mat Min Exi Min Mat Fac Low Low Dat Pro Fac Ext Cet Combat Hostiles Destroyed 54 | . . 1 3 17 . . 4 3 . 11 . 5 6 4 . Melee 4 | . . 1 . . . . . . . . . . . 3 . AOE 49 | . . . 3 17 . . 4 3 . 11 . 5 6 . . Classes Destroyed 11 | . . 1 2 2 . . . 1 1 2 . . . 2 . Worker 1 | . . . . 1 . . . . . . . . . . . Builder 2 | . . . 1 . . . . 1 . . . . . . . Tunneler 2 | . . . . . . . . . . . . . . 2 . Minesweeper 1 | . . . . . . . . . . 1 . . . . . Operator 1 | . . . . . . . . 1 . . . . . . . Watcher 2 | . . . 1 . . . . . . . . . . 1 . Swarmer 35 | . . 1 3 6 . . 4 3 . 8 . 4 6 . . Grunt 6 | . . . . . . . . . . 3 . 1 . 2 . Sentry 2 | . . . . . . . . . . . . . . 2 . Samaritan 1 | . . . . . . . . . 1 . . . . . . Assembled 11 | . . . . 11 . . . . . . . . . . . Best Kill Streak 8 | . . 1 5 8 . . 4 2 . 4 . 4 3 3 . Combat Bots Only 7 | . . 1 3 7 . . 4 2 . 4 . 4 3 2 . Max Kills in Single Turn 4 | . . 1 3 4 . . 3 2 1 3 . 2 2 1 . Gunslinging . | . . . . . . . . . . . . . . . . Exploded 4 | . . . 2 4 . . 3 2 . 3 . 2 2 . . Melee 1 | . . 1 . . . . . . . . . . . 1 . Uniques/NPCs Destroyed . | . . . . . . . . . . . . . . . . Combat | -11 -10 -10 -9 -9 -9 -8 -8 -7 -7 -7 -7 -6 -6 -6 -6 -------- Run | Jun Mat Min Mat Min Exi Min Mat Fac Low Low Dat Pro Fac Ext Cet Damage Taken 2990 | . . 25 152 310 . 16 36 38 34 396 . 148 252 1368 215 Core 1471 | . . 13 96 200 . 13 . 12 15 219 . 51 146 549 157 Absorbed by Shields 91 | . . . . . . . . . . . . . . 91 . Redirected to Shielding 32 | . . . . . . 3 . 2 3 24 . . . . . Core Remaining (%) 74 | 100 . 94 . . . 22 100 . . . . 57 . . . Volleys Fired 54 | . . . 4 13 . . 2 3 . 15 . 6 4 6 1 Largest 1 | . . . 1 1 . . 1 1 . 1 . 1 1 1 1 Hottest 36 | . . . 30 33 . . 33 33 . 30 . 33 30 30 36 Shots Fired 54 | . . . 4 13 . . 2 3 . 15 . 6 4 6 1 Gun . | . . . . . . . . . . . . . . . . Cannon . | . . . . . . . . . . . . . . . . Launcher 51 | . . . 4 13 . . 2 3 . 15 . 6 4 3 1 Special 3 | . . . . . . . . . . . . . . 3 . Kinetic . | . . . . . . . . . . . . . . . . Thermal . | . . . . . . . . . . . . . . . . Explosive 51 | . . . 4 13 . . 2 3 . 15 . 6 4 3 1 Electromagnetic . | . . . . . . . . . . . . . . . . Robot Hit Streak 14 | . . . . 1 . . . . . 9 . 14 . 4 5 Robot Miss Streak 3 | . . . . . . . . . . . . 1 2 3 . Penetration Max . | . . . . . . . . . . . . . . . . Secondary Targets . | . . . . . . . . . . . . . . . . Shots Hit Robots 46 | . . . . 1 . . . 2 1 14 . 5 . 22 1 Core Hits 100 | . . 1 6 28 . . 5 7 1 19 . 13 9 9 2 Critical Kills . | . . . . . . . . . . . . . . . . Critical Parts Destroyed . | . . . . . . . . . . . . . . . . Critical Strikes 5 | . . . . . . . . . . 1 . . . 4 . Sever 4 | . . . . . . . . . . . . . . 4 . Impale 1 | . . . . . . . . . . 1 . . . . . Melee Attacks 46 | . . . . . . . . 2 1 10 . 1 9 23 . Impact . | . . . . . . . . . . . . . . . . Slashing 21 | . . . . . . . . . . . . . . 21 . Piercing 25 | . . . . . . . . 2 1 10 . 1 9 2 . Sneak Attacks 6 | . . . . . . . . 2 1 1 . . . 2 . Combat Hostiles . | . . . . . . . . . . . . . . . . Follow-up Attacks . | . . . . . . . . . . . . . . . . Damage Inflicted 5317 | . . 12 192 1020 . . 228 385 93 1315 . 600 472 896 104 Guns . | . . . . . . . . . . . . . . . . Cannons . | . . . . . . . . . . . . . . . . Explosions 4044 | . . . 192 1020 . . 228 238 . 1083 . 600 472 107 104 Melee 1183 | . . . . . . . . 147 93 232 . . . 711 . Ramming 90 | . . 12 . . . . . . . . . . . 78 . Kinetic . | . . . . . . . . . . . . . . . . Thermal 60 | . . . . 60 . . . . . . . . . . . Explosive 3984 | . . . 192 960 . . 228 238 . 1083 . 600 472 107 104 Electromagnetic . | . . . . . . . . . . . . . . . . Impact . | . . . . . . . . . . . . . . . . Slashing 582 | . . . . . . . . . . . . . . 582 . Piercing 601 | . . . . . . . . 147 93 232 . . . 129 . Highest Corruption 4 | . . . . 4 4 4 . 1 1 1 1 1 . . . Average Corruption 2 | . . . . 3 4 4 . 1 1 1 1 1 . . . Corruption Purged . | . . . . . . . . . . . . . . . . Corruption Blocked . | . . . . . . . . . . . . . . . . Effects 13 | . . . . 7 . 2 . . . 2 . 2 . . . Message Errors 3 | . . . . 2 . 1 . . . . . . . . . Matter Fused 2 | . . . . 2 . . . . . . . . . . . Heat Flow Errors 2 | . . . . 2 . . . . . . . . . . . Energy Discharges 1 | . . . . . . . . . . . . 1 . . . Data Loss (minor) 2 | . . . . 1 . . . . . 1 . . . . . Data Loss (major) 1 | . . . . . . . . . . . . 1 . . . Alerts 2 | . . . . . . 1 . . . 1 . . . . . Overload Shots . | . . . . . . . . . . . . . . . . Overflow Damage 272 | . . . . 53 . . . 25 . 109 . 10 16 59 . Projectiles . | . . . . . . . . . . . . . . . . Explosions 125 | . . . . 53 . . . 25 . 21 . 10 16 . . Melee 147 | . . . . . . . . . . 88 . . . 59 . Knockbacks 1 | . . . . . . . . . . . . . . 1 . Impact 1 | . . . . . . . . . . . . . . 1 . Kinetic . | . . . . . . . . . . . . . . . . Secondary . | . . . . . . . . . . . . . . . . Self-Inflicted Damage 97 | . . 6 4 30 . . . . . . . . . 57 . Shots 4 | . . . 1 2 . . . . . . . . . 1 . Rammed 20 | . . 1 . . . . . . . . . . . 19 . Targets Rammed 20 | . . 1 . . . . . . . . . . . 19 . Kicked . | . . . . . . . . . . . . . . . . Crushed . | . . . . . . . . . . . . . . . . Highest Temperature 230 | . . . 3 230 . . . . 7 . . . . . . Average Temperature 95 | . . . 3 108 . . . . 7 . . . . . . Received Heat Transfer 568 | . . . 45 80 . 9 18 . 18 117 . 54 66 143 18 Siege Activations . | . . . . . . . . . . . . . . . . Robots Corrupted . | . . . . . . . . . . . . . . . . Combat Hostiles . | . . . . . . . . . . . . . . . . Parts Fried . | . . . . . . . . . . . . . . . . Impact Corruptions . | . . . . . . . . . . . . . . . . Robots Melted . | . . . . . . . . . . . . . . . . Combat Hostiles . | . . . . . . . . . . . . . . . . Parts Melted . | . . . . . . . . . . . . . . . . Heat Transferred 100 | . . . . 100 . . . . . . . . . . . Parts Sabotaged . | . . . . . . . . . . . . . . . . Parts Stolen . | . . . . . . . . . . . . . . . . Parts Stripped . | . . . . . . . . . . . . . . . . Power Chain Reactions . | . . . . . . . . . . . . . . . . Missiles Intercepted . | . . . . . . . . . . . . . . . . Alert | -11 -10 -10 -9 -9 -9 -8 -8 -7 -7 -7 -7 -6 -6 -6 -6 ------- Run | Jun Mat Min Mat Min Exi Min Mat Fac Low Low Dat Pro Fac Ext Cet Peak Influence 742 | . 15 53 192 348 . 56 214 259 . . . . 382 742 371 Initial 359 | . . 5 12 74 . . 13 97 . . . . 119 186 359 Average 327 | . 5 29 123 271 . 30 100 179 . . . . 257 526 328 Maximum Alert Level 3 | . . . . 1 . . 1 1 . . . . 1 3 1 Low Security (%) 33 | 100 100 100 100 21 . 100 92 68 . . . . 33 3 . Level 1 37 | . . . . 78 . . 7 31 . . . . 66 26 100 Level 2 21 | . . . . . . . . . . . . . . 52 . Level 3 7 | . . . . . . . . . . . . . . 17 . Level 4 . | . . . . . . . . . . . . . . . . Level 5 . | . . . . . . . . . . . . . . . . High Security . | . . . . . . . . . . . . . . . . Max Security . | . . . . . . . . . . . . . . . . Squads Dispatched 9 | . 1 . 2 . . . . 2 . . . . 2 2 . Investigation 7 | . 1 . 1 . . . . 2 . . . . 2 1 . Extermination . | . . . . . . . . . . . . . . . . Reinforcement 2 | . . . 1 . . . . . . . . . . 1 . Assault . | . . . . . . . . . . . . . . . . Garrison . | . . . . . . . . . . . . . . . . Intercept . | . . . . . . . . . . . . . . . . Searches Triggered . | . . . . . . . . . . . . . . . . Data Miner Redirects 3 | . . . . . . . . . . . . . 2 1 . Construction Impeded 1 | . . . . . . . . . . . . . . 1 . Haulers Reinforced . | . . . . . . . . . . . . . . . . Active Scanning Responses . | . . . . . . . . . . . . . . . . Cargo Convoy Interrupts . | . . . . . . . . . . . . . . . . Stealth | -11 -10 -10 -9 -9 -9 -8 -8 -7 -7 -7 -7 -6 -6 -6 -6 --------- Run | Jun Mat Min Mat Min Exi Min Mat Fac Low Low Dat Pro Fac Ext Cet Distress Signals 4 | . . . 2 . . . 1 . . . . . . . 1 Communications Jammed . | . . . . . . . . . . . . . . . . Distress Signals . | . . . . . . . . . . . . . . . . Times Spotted 133 | . 1 5 10 26 . 6 8 4 4 19 . 7 8 26 9 Peak Tracking Total 9 | . 1 5 7 8 . 3 9 3 4 5 . 4 5 8 8 Tactical Retreats 13 | . . . . 3 . . 1 . 1 3 . . 4 1 . Traps | -11 -10 -10 -9 -9 -9 -8 -8 -7 -7 -7 -7 -6 -6 -6 -6 ------- Run | Jun Mat Min Mat Min Exi Min Mat Fac Low Low Dat Pro Fac Ext Cet Traps Triggered 4 | . . . . . . . . . . . . . . 4 . Indirectly . | . . . . . . . . . . . . . . . . Trap Hack Attempts . | . . . . . . . . . . . . . . . . Triggered . | . . . . . . . . . . . . . . . . Disarmed . | . . . . . . . . . . . . . . . . Reprogrammed . | . . . . . . . . . . . . . . . . Reused . | . . . . . . . . . . . . . . . . Traps Extracted . | . . . . . . . . . . . . . . . . Installed . | . . . . . . . . . . . . . . . . Triggered 1 | . . . . 1 . . . . . . . . . . . Machines | -11 -10 -10 -9 -9 -9 -8 -8 -7 -7 -7 -7 -6 -6 -6 -6 ---------- Run | Jun Mat Min Mat Min Exi Min Mat Fac Low Low Dat Pro Fac Ext Cet Machines Disabled 5 | . . . . 1 . . 1 . . . . 1 2 . . Max in Single Turn 2 | . . . . 1 . . 1 . . . . 1 2 . . Machines Repaired . | . . . . . . . . . . . . . . . . Machines Sabotaged . | . . . . . . . . . . . . . . . . Overloaded Fab Kills . | . . . . . . . . . . . . . . . . Hacking | -11 -10 -10 -9 -9 -9 -8 -8 -7 -7 -7 -7 -6 -6 -6 -6 --------- Run | Jun Mat Min Mat Min Exi Min Mat Fac Low Low Dat Pro Fac Ext Cet Machines Accessed 20 | . 3 . 3 . 1 . 1 3 . 1 3 . 2 3 . Terminals 13 | . 3 . 2 . . . 1 2 . . . . 2 3 . Fabricators . | . . . . . . . . . . . . . . . . Repair Stations . | . . . . . . . . . . . . . . . . Recycling Units 2 | . . . 1 . . . . 1 . . . . . . . Scanalyzers . | . . . . . . . . . . . . . . . . Garrison Access . | . . . . . . . . . . . . . . . . Total Hacks 55 | . 10 . 7 . 1 . 2 6 . 1 20 . 4 4 . Successful 29 | . . . 2 . 1 . 1 2 . 1 20 . . 2 . Failed 26 | . 10 . 5 . . . 1 4 . . . . 4 2 . Catastrophic 5 | . 3 . . . . . . 1 . . . . 1 . . Database Lockouts . | . . . . . . . . . . . . . . . . Manual 22 | . 10 . 3 . . . 2 4 . . . 1 2 . . Terminals 30 | . 10 . 6 . . . 2 4 . . . . 4 4 . Fabricators . | . . . . . . . . . . . . . . . . Repair Stations . | . . . . . . . . . . . . . . . . Recycling Units 3 | . . . 1 . . . . 2 . . . . . . . Scanalyzers . | . . . . . . . . . . . . . . . . Garrison Access . | . . . . . . . . . . . . . . . . Terminal Hacks 26 | . . . 1 . 1 . 1 . . 1 20 . . 2 . Record 3 | . . . . . 1 . . . . . 2 . . . . Part Schematic 10 | . . . . . . . . . . . 10 . . . . Robot Schematic 5 | . . . . . . . . . . . 5 . . . . Prototype ID Bank 4 | . . . . . . . . . . . 3 . . 1 . Open Door 1 | . . . . . . . . . . 1 . . . . . Branch Access Points 1 | . . . . . . . 1 . . . . . . . . Terminal Index 1 | . . . . . . . . . . . . . . 1 . Zone Layout 1 | . . . 1 . . . . . . . . . . . . Fabricator Hacks . | . . . . . . . . . . . . . . . . Repair Station Hacks . | . . . . . . . . . . . . . . . . Recycling Unit Hacks . | . . . . . . . . . . . . . . . . Scanalyzer . | . . . . . . . . . . . . . . . . Garrison Access Hacks . | . . . . . . . . . . . . . . . . Unauthorized Hacks 3 | . . . 1 . . . . 2 . . . . . . . Terminals 1 | . . . . . . . . 1 . . . . . . . Assimilate 1 | . . . . . . . . 1 . . . . . . . Fabricators . | . . . . . . . . . . . . . . . . Repair Stations . | . . . . . . . . . . . . . . . . Recycling Units 2 | . . . 1 . . . . 1 . . . . . . . Tunnel 2 | . . . 1 . . . . 1 . . . . . . . Scanalyzers . | . . . . . . . . . . . . . . . . Garrison Access . | . . . . . . . . . . . . . . . . Data Cores Recovered . | . . . . . . . . . . . . . . . . Used . | . . . . . . . . . . . . . . . . Hacking Detections 13 | . 3 . 2 . . . 1 3 . . . . 2 2 . Full Trace Events 6 | . 2 . 1 . . . . 1 . . . . 2 . . Feedback Events 1 | . . . . . . . . 1 . . . . . . . Corruption 1 | . . . . . . . . 1 . . . . . . . Feedback Blocked . | . . . . . . . . . . . . . . . . Robot Schematics Acquired 5 | . . . . . . . . . . . 5 . . . . Robots Built . | . . . . . . . . . . . . . . . . Authchips . | . . . . . . . . . . . . . . . . Time . | . . . . . . . . . . . . . . . . Total Robot Build Rating . | . . . . . . . . . . . . . . . . Part Schematics Acquired 10 | . . . . . . . . . . . 10 . . . . Parts Built . | . . . . . . . . . . . . . . . . Authchips . | . . . . . . . . . . . . . . . . Time . | . . . . . . . . . . . . . . . . Total Part Build Rating . | . . . . . . . . . . . . . . . . Parts Repaired . | . . . . . . . . . . . . . . . . Time . | . . . . . . . . . . . . . . . . Parts Recycled . | . . . . . . . . . . . . . . . . Recycled Matter . | . . . . . . . . . . . . . . . . Retrieved Matter . | . . . . . . . . . . . . . . . . Retrieved Components . | . . . . . . . . . . . . . . . . Parts Scanalyzed . | . . . . . . . . . . . . . . . . Part Schematics Acquired . | . . . . . . . . . . . . . . . . Parts Damaged . | . . . . . . . . . . . . . . . . Bothacking | -11 -10 -10 -9 -9 -9 -8 -8 -7 -7 -7 -7 -6 -6 -6 -6 ------------ Run | Jun Mat Min Mat Min Exi Min Mat Fac Low Low Dat Pro Fac Ext Cet Used RIF Installer . | . . . . . . . . . . . . . . . . Robots Hacked . | . . . . . . . . . . . . . . . . Non-combat . | . . . . . . . . . . . . . . . . Combat . | . . . . . . . . . . . . . . . . Robot Hacks Applied . | . . . . . . . . . . . . . . . . Relay Couplers Released . | . . . . . . . . . . . . . . . . Fabnet Peak Effective % . | . . . . . . . . . . . . . . . . Robots Rewired 12 | . . . . . . . . . . . . . 1 11 . Allies Hacked . | . . . . . . . . . . . . . . . . Hacks Repelled . | . . . . . . . . . . . . . . . . Allies | -11 -10 -10 -9 -9 -9 -8 -8 -7 -7 -7 -7 -6 -6 -6 -6 -------- Run | Jun Mat Min Mat Min Exi Min Mat Fac Low Low Dat Pro Fac Ext Cet Total Allies 30 | . . 2 . 4 . . . 1 . . . 1 1 21 . Largest Group 16 | . . 1 . 3 3 3 . 1 . . . 1 1 16 13 Highest-Rated Group 449 | . . 31 . 40 40 40 . 10 . . . 96 32 449 359 Highest-Rated Ally 159 | . . 31 . 31 16 16 . 10 . . . 96 32 159 39 Total Orders . | . . . . . . . . . . . . . . . . Ally Attacks 162 | . . 9 . 11 . 19 . . . . . 6 . 96 21 Total Damage 3751 | . . 63 . 169 . 214 . . . . . 232 . 2616 457 Kills 28 | . . 1 . 3 . 3 . . . . . 2 . 18 1 Allies Corrupted . | . . . . . . . . . . . . . . . . Allies Melted . | . . . . . . . . . . . . . . . . Intel | -11 -10 -10 -9 -9 -9 -8 -8 -7 -7 -7 -7 -6 -6 -6 -6 ------- Run | Jun Mat Min Mat Min Exi Min Mat Fac Low Low Dat Pro Fac Ext Cet Robot Analysis Total . | . . . . . . . . . . . . . . . . Derelict Logs Recovered 3 | . . 1 . . . . . . . 1 . 1 . . . Drone Launches . | . . . . . . . . . . . . . . . . Drone Recoveries . | . . . . . . . . . . . . . . . . Exploration | -11 -10 -10 -9 -9 -9 -8 -8 -7 -7 -7 -7 -6 -6 -6 -6 ------------- Run | Jun Mat Min Mat Min Exi Min Mat Fac Low Low Dat Pro Fac Ext Cet Turns Passed 2526 | 15 49 53 71 310 138 93 57 107 64 388 43 208 198 693 39 Spaces Moved 3722 | 29 95 113 155 394 130 247 131 255 224 553 78 372 276 649 21 Core 573 | 29 95 38 . 70 . . . . . 13 . . 74 233 21 Treads 7 | . . . . . . . . . . . . . . 7 . Legs 65 | . . . . . . . . . . 65 . . . . . Wheels . | . . . . . . . . . . . . . . . . Hover . | . . . . . . . . . . . . . . . . Flight 3077 | . . 75 155 324 130 247 131 255 224 475 78 372 202 409 . Fastest Speed 27 | 50 50 37 37 37 37 37 31 27 27 27 55 42 30 34 50 Average Speed 42 | 50 50 41 38 40 37 37 34 27 27 53 55 50 42 43 59 Slowest Speed 160 | 50 50 50 40 50 40 37 37 31 29 150 55 55 150 160 100 Overloaded Moves . | . . . . . . . . . . . . . . . . Propulsion Burnouts . | . . . . . . . . . . . . . . . . Robots Hopped 21 | . . 1 3 7 . 5 . . . 1 . . . 4 . Cave-ins Triggered . | . . . . . . . . . . . . . . . . Exploration Rate (%) 39 | 3 28 41 22 63 48 64 19 6 46 62 68 58 10 73 16 Regions Visited 15 Branch Regions 10 Pre-discovered Areas 5 | . . . 1 . 1 . . 1 . . 1 1 . . . Known Exits Taken 1 | . . . . . . 1 . . . . . . . . . Unknown Exits Taken 14 | 1 1 1 1 1 1 . 1 1 1 1 1 1 1 1 . Scrap Searched 10 | . . . . 2 . 1 . . 2 4 . 1 . . . Spaces Dug 101 | . . . . 77 . . . 15 . 3 . . 6 . . Terrain Destroyed 380 | . . . 28 116 . . 19 26 . 78 . 44 19 38 12 Melee 9 | . . . . . . . . . . 3 . . 6 . . Projectile . | . . . . . . . . . . . . . . . . AOE 371 | . . . 28 116 . . 19 26 . 75 . 44 13 38 12 Terrain Rammed . | . . . . . . . . . . . . . . . . Walls Destroyed . | . . . . . . . . . . . . . . . . Machines Disabled . | . . . . . . . . . . . . . . . . Actions | -11 -10 -10 -9 -9 -9 -8 -8 -7 -7 -7 -7 -6 -6 -6 -6 --------- Run | Jun Mat Min Mat Min Exi Min Mat Fac Low Low Dat Pro Fac Ext Cet Total 4496 | 28 95 115 159 522 218 242 138 283 225 612 78 385 337 1012 47 Wait 406 | . . . . 107 86 . . 14 . 18 . . 25 135 21 Move 3668 | 28 94 110 148 380 129 237 130 254 223 550 77 371 275 641 21 Hop 18 | . . 1 3 6 . 4 . . . 1 . . . 3 . Pick Up 14 | . 1 . 2 3 1 . . 2 . 1 . 2 . 2 . Fast Attach 37 | . . 3 . 5 . 1 4 3 . 6 . 1 6 8 . Attach 27 | . . . 1 3 1 . 1 3 1 2 . 2 3 7 3 Detach 16 | . . . 1 2 . . 1 1 . 1 1 . 3 5 1 Swap 11 | . . . . 2 . . . 1 . 3 . 1 2 2 . Drop 14 | . . . . 1 1 . . . . 5 . 1 2 4 . Fire 54 | . . . 4 13 . . 2 3 . 15 . 6 4 6 1 Melee 46 | . . . . . . . . 2 1 10 . 1 9 23 . Ram 20 | . . 1 . . . . . . . . . . . 19 . Kick . | . . . . . . . . . . . . . . . . Crush . | . . . . . . . . . . . . . . . . Escape Stasis 51 | . . . . . . . . . . . . . . 51 . Rewire 114 | . . . . . . . . . . . . . 8 106 . Trap . | . . . . . . . . . . . . . . . . Miscellaneous . | . . . . . . . . . . . . . . . . Route ------- -11/Junkyard -10/Materials -10/Mines -9/Materials (discovered 2 exits: Mat / [*Min]) -9/Mines (discovered 3 exits: *Mat x2 / *Exi) -9/Exiles -8/Mines -8/Materials -7/Factory -7/Lower Caves -7/Lower Caves -7/Data Miner -6/Proximity Caves -6/Factory (discovered 2 exits: Fac / *Ext) -6/Extension (discovered 2 exits: *Fac / [*Cet]) -6/Cetus History --------- Turn | Location | Event 7 | -11/Junkyard | Discovered new exit (range 15) 16 | -11/Junkyard | Entered Materials 61 | -10/Materials | Discovered new exit (range 9) 65 | -10/Materials | Entered Mines 113 | -10/Mines | Learned location of 1 exit from Materials 115 | -10/Mines | Discovered new exit (range 8) 118 | -10/Mines | Entered Materials 118 | -9/Materials | Evolved 2 slots: Utility x2 119 | -9/Materials | Identified exit to Materials 185 | -9/Materials | Discovered new exit (range 11) 189 | -9/Materials | Entered Mines 190 | -9/Mines | Assembled infested the area 190 | -9/Mines | Met a Derelict testing a Signal Generator 195 | -9/Mines | Assisted by a Guerilla fighting off Assembled 206 | -9/Mines | Received a Rocket Launcher from a helpful Derelict 271 | -9/Mines | Core integrity fell below 50% 301 | -9/Mines | Lost 3 parts (2n1w) 336 | -9/Mines | Build established: Mutant 421 | -9/Mines | Discovered exit to Materials (range 12) 436 | -9/Mines | Discovered exit to Materials (range 11) 441 | -9/Mines | Assisted by bots powering up and referring to "LRC-V3" 454 | -9/Mines | Destroyed 7 combat bots 477 | -9/Mines | Deemed a non-threat by the Exiles lab entrance 478 | -9/Mines | Discovered new exit (range 5) 499 | -9/Mines | Entered Exiles 499 | -9/Exiles | Accompanied by 3 allies 509 | -9/Exiles | Met 8R-AWN 516 | -9/Exiles | Met EX-HEX 533 | -9/Exiles | Met EX-DEC 535 | -9/Exiles | Learned location of Zion (-6) 545 | -9/Exiles | Discovered new exit (range 15) 637 | -9/Exiles | Entered Mines 637 | -8/Mines | Accompanied by 3 allies 729 | -8/Mines | Discovered exit to Materials (range 5) 730 | -8/Mines | Entered Materials 730 | -8/Materials | Evolved 2 slots: Propulsion x2 782 | -8/Materials | Discovered new exit (range 16) 787 | -8/Materials | Entered Factory 787 | -7/Factory | Evolved 2 slots: Propulsion x1, Utility x1 885 | -7/Factory | Discovered new exit (range 13) 894 | -7/Factory | Entered Lower Caves 945 | -7/Lower Caves | Discovered new exit (range 12) 958 | -7/Lower Caves | Entered another Lower Caves area 975 | -7/Lower Caves | Spotted B-75 Beast 1007 | -7/Lower Caves | Lost 3 parts (3n) 1105 | -7/Lower Caves | Learned 8 Factory zone layouts 1343 | -7/Lower Caves | Discovered new exit (range 5) 1346 | -7/Lower Caves | Entered Data Miner 1347 | -7/Data Miner | Discovered new exit (range 7) 1357 | -7/Data Miner | Met Data Miner 1371 | -7/Data Miner | Learned location of Section 7 (-2) 1371 | -7/Data Miner | Acquired the access code to Warlord's prototype stash 1377 | -7/Data Miner | Received God Mode back door access code from Data Miner 1389 | -7/Data Miner | Entered Proximity Caves 1430 | -6/Proximity Caves | Escorted by Enhanced Grunt 1550 | -6/Proximity Caves | Discovered new exit (range 10) 1576 | -6/Proximity Caves | Acquired the password to a Derelict Tinkerer's latest research 1586 | -6/Proximity Caves | Found Prototype Special Weapon 1597 | -6/Proximity Caves | Entered Factory 1597 | -6/Factory | Evolved 2 slots: Power x1, Utility x1 1598 | -6/Factory | Identified exit to Factory 1618 | -6/Factory | Identified Molecular Deconstructor 1682 | -6/Factory | Lost 3 parts (2n1u) 1765 | -6/Factory | Discovered new exit (range 16) 1767 | -6/Factory | Incoming investigation squad redirected 1785 | -6/Factory | Incoming investigation squad redirected 1795 | -6/Factory | Entered Extension 1795 | -6/Extension | Accompanied by 1 ally 1837 | -6/Extension | Rescued a captive Derelict 1910 | -6/Extension | Rescued a captive Derelict 1910 | -6/Extension | Rescued a captive Derelict 1963 | -6/Extension | Rescued A7 2014 | -6/Extension | Rescued a captive Derelict 2037 | -6/Extension | Spotted B-75 Beast 2040 | -6/Extension | Spotted B-75 Beast 2068 | -6/Extension | Rescued a captive Derelict 2069 | -6/Extension | Rescued a captive Derelict 2159 | -6/Extension | Rescued a captive Derelict 2389 | -6/Extension | Extracted ID and sensor layout for unrecognized location from A7's data core 2400 | -6/Extension | Rescued a captive Derelict 2402 | -6/Extension | Rescued a captive Derelict 2413 | -6/Extension | Build established: Commander-Mutant 2419 | -6/Extension | Incoming investigation squad redirected 2431 | -6/Extension | Discovered exit to Factory (range 10) 2436 | -6/Extension | Core integrity fell below 50% 2446 | -6/Extension | Discovered new exit (range 6) 2467 | -6/Extension | Core integrity fell below 20% 2488 | -6/Extension | Entered Cetus 2488 | -6/Cetus | Accompanied by 13 allies 2490 | -6/Cetus | Lost 8 parts (5n2u1w) 2504 | -6/Cetus | Spotted Cetus Guard 2504 | -6/Cetus | Spotted Cetus Guard 2505 | -6/Cetus | Spotted Cetus Guard 2506 | -6/Cetus | Spotted Cetus Guard 2525 | -6/Cetus | Allies destroyed Cetus Guard 2527 | -6/Cetus | Destroyed by S-27 Virus with Autogun Last Messages --------------- 02517_ DH-WS6(g) destroyed. 02518_ Slug penetrates Wall. 02519_ 9D-XUM(b) suffers critical hit (Destroy). 02519_ 9D-XUM(b) destroyed. 02519_ HV Slug penetrates Cetus Guard. 02520_ Cetus Guard suffers critical hit (Burn). 02521_ Slug penetrates ZR-508(b). 02521_ ZR-508(b) destroyed. 02521_ Slug penetrates 8X-77P(g). 02521_ 8X-77P(g) suffers critical hit (Destroy). 02522_ Slug penetrates LV-J2H(g). 02522_ LV-J2H(g) destroyed. 02524_ Slug penetrates 8X-77P(g). 02524_ 8X-77P(g) destroyed. 02524_ Slug penetrates KF-LG8(g). 02525_ Cetus Guard destroyed. 02526_ Cetus Guard suffers critical hit (Destroy). 02526_ Acquired 28 matter. 02527_ KF-H4J(b) suffers critical hit (Destroy). 02527_ KF-H4J(b) destroyed. Map ----- +----------------------------------------------------+ | ???????????????????????????????????????????????? | | ???????????????????????????????????????????????? | | ???????????????????????????????????????????????? | | ???????????????????????????????????????????????? | | ???????????????????????????????????????????????? | | ???????????????????????????????????????????????? | | ???????????????????????????????????????????????? | | ???????????????????????????????????????????????? | | ???????????????????????????????????????????????? | | ???????????????????????????????????????????????? | | ???????????????????????s ?????????????????????? | | ??????????????????????? s#????????????????????? | | ??????????????????????? #????????????????????? | | ???????????????????????%ss#????????????????????? | | ???????????????????????= #????????????????????? | | ??????????????????????? #????????????????????? | | ??????????????????????? #????????????????????? | | ??????????????????????# #????????????????????? | | ??????????????????????# #????????????????????? | | ??????????????????????# #????????????????????? | | ??????????????????????# #????????????????????? | | ??????????????????????# #????????????????????? | | ??????????????????????# #???#???#????????????? | | ?????????????????####?# #?# ## ##???????????? | | ?#################;;###=* # ##??????????? | | ?# =!@%bg% +?????????? | | ?# !%/=[%bYY% w +?????????? | | ?# %! *=!%=hY +?????????? | | ?##############;#;#;###!%;## ###?????????? | | ????????????????#####?# ###??#### ##???????????? | | ??????????????????????###??????????????????????? | | ???????????????????????????????????????????????? | | ???????????????????????????????????????????????? | | ???????????????????????????????????????????????? | | ???????????????????????????????????????????????? | | ???????????????????????????????????????????????? | | ???????????????????????????????????????????????? | | ???????????????????????????????????????????????? | | ???????????????????????????????????????????????? | | ???????????????????????????????????????????????? | | ???????????????????????????????????????????????? | | ???????????????????????????????????????????????? | | ???????????????????????????????????????????????? | | ???????????????????????????????????????????????? | | ???????????????????????????????????????????????? | | ???????????????????????????????????????????????? | | ???????????????????????????????????????????????? | | ???????????????????????????????????????????????? | | ???????????????????????????????????????????????? | | ???????????????????????????????????????????????? | +----------------------------------------------------+ Best States ------------- Heat Dissipation 37 Energy Generation 14 Energy Capacity 160 Matter Stores 300 Matter Capacity 300 Sight Range 16 Terrain Scan Density 10 Armor Coverage 150 Core Shielding 20 Evasion (%) 64 Targeting Accuracy 16 Melee Accuracy 5 Launcher Accuracy 60 Core Analysis 6 Recoil Reduction 5 Offensive Hacking 10 Item Schematics ----------------- Combat Drone Bay | -7/Data Miner | Free Lgt. Regenerative Plating | -7/Data Miner | Free Cld. Aerolev Unit | -7/Data Miner | Free Gravity Neutralizer | -7/Data Miner | Free Imp. Lightning Gun | -7/Data Miner | Free Field Propulsion Drive | -7/Data Miner | Free Adv. Trap Extractor | -7/Data Miner | Free Wave Gun | -7/Data Miner | Free Hvy. Siege Treads | -7/Data Miner | Free Imp. Launcher Guidance Computer | -7/Data Miner | Free Robot Schematics ------------------ A-15 Conveyor | -7/Data Miner | Free W-25 Informer | -7/Data Miner | Free X-67 Chaingunner | -7/Data Miner | Free G-47 Trooper | -7/Data Miner | Free E-15 Imp | -7/Data Miner | Free Fabricated ------------ Nothing Alien Tech Used ----------------- None Achievements -------------- None Challenges ------------ None Game ------ Seed AnalysisTargetShotgun Manual? 0 Play Time 00:32:41 Cumulative 270.7 hours Start 2023.06.03 @ 19:05:39 End 2023.06.03 @ 19:39:18 Sessions 1 Manual Loads 0 Difficulty Rogue Special Mode None Game No. 797 Rogue 797 Adventurer 0 Explorer 0 Win Type - Total 15 Types 8/0/5/2/0/0/0/0/0 Lore% 89 Gallery% 86 Achievement% 77 Wizard Run 0 Options --------- ASCII 0 Keyboard 0 Movement Numpad Keybinds 0 Fullscreen 1 Font 16/SmallcapsGlow Map View 75x55 Tactical HUD 1 Map Filters NONE Filters NONE Steam 1 RUN: d930d879-e009-4011-9d67-77ca93094fb3